fUST/lending_fUST_20240616
["ID","MTS","AMOUNT","RATE_DAILY","PERIOD"]
[329593742,1718478652045,-500.0,0.00016438,2]
[329593743,1718478652060,-500.0,0.00016438,2]
[329593744,1718478652073,-2424.97,0.00016438,2]
[329593745,1718478652086,-369.6,0.00016438,2]
[329593746,1718478652098,-500.0,0.00016438,2]
[329593747,1718478652109,-2453.14,0.00016438,2]
[329593748,1718478652120,-500.0,0.00016438,2]
[329593749,1718478652132,-500.0,0.00016438,2]
[329593750,1718478652149,-500.0,0.00016438,2]
[329593751,1718478652165,-500.0,0.00016438,2]
[329593752,1718478652178,-500.0,0.00016438,2]
[329593753,1718478652195,-2106.8,0.00016438,2]
[329593754,1718478652206,-369.6,0.0001658,2]
[329593755,1718478652227,-500.0,0.00016711,2]
[329593756,1718478652251,-500.0,0.00016712,2]
[329593757,1718478652263,-1394.85992334,0.00016712,2]
[329593758,1718478652278,-210.96007666,0.00016712,2]
[329593759,1718478652290,-314.48942684,0.00016712,2]
[329593760,1718478652304,-185.51057316,0.00016712,2]
[329593761,1718478652318,-500.0,0.00016712,2]
[329593762,1718478652330,-500.0,0.00016712,2]
[329593763,1718478652341,-224.44942684,0.00016712,2]
[329593841,1718479835163,-155.01085076,9.997e-05,2]
[329593842,1718479835181,-160.69914924,9.998e-05,2]
[329593847,1718479835462,-149.33185386,9.998e-05,2]
[329593848,1718479835474,-363.51,0.00010959,2]
[329593850,1718479835491,-302.93,0.00010959,2]
[329593852,1718479835520,-252.44,0.00010959,2]
[329593855,1718479835532,-210.37,0.00010959,2]
[329593857,1718479835543,-175.3,0.00010959,2]
[329593859,1718479835555,-876.55,0.00010959,2]
[329593861,1718479835584,-1462.31652038,0.00013148,2]
[329593863,1718479835601,-1390.0,0.00013148,2]
[329593892,1718479840799,-741.25154402,0.00013148,2]
[329593893,1718479840997,-21306.4319356,0.00013148,2]
[329593894,1718479841041,-258.7591645,0.00013699,2]
[329593895,1718479841055,-492.05119261,0.000149,2]
[329593896,1718479841071,-946.56236145,0.00015,2]
[329593897,1718479841082,-1101.53149693,0.00015,2]
[329593899,1718479841107,-35478.57810534,0.00015,2]
[329593900,1718479841118,-1303.55844644,0.00015,2]
[329593901,1718479841148,-2413.03400432,0.00015,2]
[329593902,1718479841204,-34730.00235962,0.00015,2]
[329593903,1718479841219,-492.05119261,0.00015328,2]
[329593906,1718479841240,-489.64646748,0.000156,2]
[329593908,1718479841255,-492.05119261,0.00015755,2]
[329593909,1718479841288,-1000.0,0.00016,6]
[329593912,1718479841312,-306.0,0.00016052,2]
[329593927,1718479841462,-1750.0,0.00016156,2]
[329593928,1718479841481,-166.666666,0.00016164,2]
[329593931,1718479841510,-492.05119261,0.00016183,2]
[329593932,1718479841526,-153.0,0.00016352,2]
[329593933,1718479841537,-4410.48329329,0.00016434,2]
[329593934,1718479841547,-261.91979643,0.00016434,2]
[329593935,1718479841576,-2036.10483651,0.00016434,2]
[329593936,1718479841587,-515.43295454,0.00016435,2]
[329593937,1718479841600,-160.71943637,0.00016436,2]
[329593938,1718479841621,-341.18795406,0.00016437,2]
[329593939,1718479841633,-500.0,0.00016438,2]
[329593940,1718479841647,-500.0,0.00016438,2]
[329593941,1718479841672,-500.0,0.00016438,2]
[329593942,1718479841685,-1513.66,0.00016438,2]
[329593943,1718479841700,-500.0,0.00016438,2]
[329593944,1718479841745,-500.0,0.00016438,2]
[329593945,1718479841773,-500.0,0.00016438,2]
[329593946,1718479841792,-250.0,0.00016438,2]
[329593947,1718479841823,-525.11782455,0.00016438,2]
[329593948,1718479841835,-500.0,0.00016438,2]
[329593949,1718479841845,-500.0,0.00016438,2]
[329593950,1718479841872,-500.0,0.00016438,2]
[329593951,1718479841883,-278.57855104,0.00016438,2]
[329593952,1718479841899,-525.75919218,0.00016438,2]
[329593953,1718479841910,-500.0,0.00016438,2]
[329593954,1718479841931,-500.0,0.00016438,2]
[329593955,1718479841949,-500.0,0.00016438,2]
[329593956,1718479841988,-500.0,0.00016438,2]
[329593957,1718479842025,-500.0,0.00016438,2]
[329593958,1718479842043,-500.0,0.00016438,2]
[329593959,1718479842068,-284.91399945,0.00016438,2]
[329593960,1718479842092,-500.0,0.00016438,2]
[329593961,1718479842103,-500.0,0.00016438,2]
[329593962,1718479842117,-500.0,0.00016438,2]
[329593963,1718479842140,-500.0,0.00016438,2]
[329593964,1718479842172,-500.0,0.00016438,2]
[329593965,1718479842192,-500.0,0.00016438,2]
[329593966,1718479842202,-500.0,0.00016438,2]
[329593967,1718479842231,-212.72810922,0.00016438,2]
[329593968,1718479842246,-500.0,0.00016438,2]
[329593969,1718479842260,-500.0,0.00016438,2]
[329593970,1718479842271,-500.0,0.00016438,2]
[329593971,1718479842284,-500.0,0.00016438,2]
[329593972,1718479842301,-500.0,0.00016438,2]
[329593973,1718479842323,-364.57358683,0.00016438,2]
[329593974,1718479842337,-500.0,0.00016438,2]
[329593975,1718479842360,-500.0,0.00016438,2]
[329593976,1718479842380,-500.0,0.00016438,2]
[329593977,1718479842390,-500.0,0.00016438,2]
[329593978,1718479842401,-500.0,0.00016438,2]
[329593979,1718479842414,-500.0,0.00016438,2]
[329593980,1718479842430,-500.0,0.00016438,2]
[329593981,1718479842442,-500.0,0.00016438,2]
[329593982,1718479842454,-500.0,0.00016438,2]
[329593983,1718479842464,-506.74802645,0.00016438,2]
[329593984,1718479842475,-500.0,0.00016438,2]
[329593985,1718479842487,-500.0,0.00016438,2]
[329593986,1718479842498,-500.0,0.00016438,2]
[329593987,1718479842513,-601.60671087,0.00016438,2]
[329593988,1718479842525,-500.0,0.00016438,2]
[329593989,1718479842538,-503.72942643,0.00016438,2]
[329593990,1718479842550,-500.0,0.00016438,2]
[329593991,1718479842562,-500.0,0.00016438,2]
[329593992,1718479842580,-500.0,0.00016438,2]
[329593993,1718479842590,-500.0,0.00016438,2]
[329593994,1718479842601,-500.0,0.00016438,2]
[329593995,1718479842612,-500.0,0.00016438,2]
[329593996,1718479842623,-500.0,0.00016438,2]
[329593997,1718479842634,-500.0,0.00016438,2]
[329593998,1718479842659,-500.0,0.00016438,2]
[329593999,1718479842673,-500.0,0.00016438,2]
[329594000,1718479842688,-500.0,0.00016438,2]
[329594001,1718479842700,-500.0,0.00016438,2]
[329594002,1718479842711,-500.0,0.00016438,2]
[329594003,1718479842722,-339.047468,0.00016438,2]
[329594004,1718479842742,-232.3954322,0.00016438,2]
[329594005,1718479842753,-274.32958857,0.00016438,2]
[329594006,1718479842764,-500.0,0.00016438,2]
[329594007,1718479842775,-500.0,0.00016438,2]
[329594008,1718479842787,-500.0,0.00016438,2]
[329594009,1718479842808,-500.0,0.00016438,2]
[329594010,1718479842822,-500.0,0.00016438,2]
[329594011,1718479842840,-500.0,0.00016438,2]
[329594012,1718479842874,-500.0,0.00016438,2]
[329594013,1718479842909,-360.45175307,0.00016438,2]
[329594014,1718479842928,-500.0,0.00016438,2]
[329594015,1718479842942,-507.78217919,0.00016438,2]
[329594016,1718479842954,-500.0,0.00016438,2]
[329594017,1718479843000,-500.0,0.00016438,2]
[329594018,1718479843013,-512.57106726,0.00016438,2]
[329594019,1718479843042,-4168.09,0.00016438,2]
[329594020,1718479843060,-500.0,0.00016438,2]
[329594021,1718479843075,-500.0,0.00016438,2]
[329594022,1718479843085,-521.78521327,0.00016438,2]
[329594023,1718479843097,-2399.39,0.00016438,2]
[329594024,1718479843109,-500.0,0.00016438,2]
[329594025,1718479843131,-500.0,0.00016438,2]
[329594026,1718479843159,-500.0,0.00016438,2]
[329594027,1718479843174,-500.0,0.00016438,2]
[329594028,1718479843188,-500.0,0.00016438,2]
[329594029,1718479843202,-204.91252057,0.00016438,2]
[329594030,1718479843230,-500.0,0.00016438,2]
[329594031,1718479843243,-500.0,0.00016438,2]
[329594032,1718479843262,-500.0,0.00016438,2]
[329594033,1718479843278,-500.0,0.00016438,2]
[329594034,1718479843292,-500.0,0.00016438,2]
[329594035,1718479843310,-500.0,0.00016438,2]
[329594036,1718479843322,-500.0,0.00016438,2]
[329594037,1718479843342,-500.0,0.00016438,2]
[329594038,1718479843352,-500.0,0.00016438,2]
[329594039,1718479843363,-500.0,0.00016438,2]
[329594040,1718479843395,-500.0,0.00016438,2]
[329594041,1718479843415,-500.0,0.00016438,2]
[329594042,1718479843452,-500.0,0.00016438,2]
[329594044,1718479843463,-500.0,0.00016438,2]
[329594046,1718479843474,-500.0,0.00016438,2]
[329594047,1718479843485,-1040.71,0.00016438,2]
[329594049,1718479843495,-500.0,0.00016438,2]
[329594050,1718479843510,-507.24,0.00016438,2]
[329594051,1718479843522,-500.0,0.00016438,2]
[329594052,1718479843539,-500.0,0.00016438,2]
[329594053,1718479843549,-500.0,0.00016438,2]
[329594054,1718479843561,-500.0,0.00016438,2]
[329594055,1718479843575,-500.0,0.00016438,2]
[329594056,1718479843590,-500.0,0.00016438,2]
[329594057,1718479843600,-500.0,0.00016438,2]
[329594058,1718479843635,-500.0,0.00016438,2]
[329594059,1718479843647,-500.0,0.00016438,2]
[329594060,1718479843670,-500.0,0.00016438,2]
[329594061,1718479843687,-500.0,0.00016438,2]
[329594062,1718479843711,-500.0,0.00016438,2]
[329594063,1718479843730,-486.26914958,0.00016438,2]
[329594064,1718479843746,-635.9,0.00016438,2]
[329594065,1718479843760,-500.0,0.00016438,2]
[329594066,1718479843771,-500.0,0.00016438,2]
[329594067,1718479843793,-500.0,0.00016438,2]
[329594068,1718479843809,-500.0,0.00016438,2]
[329594069,1718479843823,-504.66368074,0.00016438,2]
[329594070,1718479843834,-500.0,0.00016438,2]
[329594071,1718479843850,-500.0,0.00016438,2]
[329594072,1718479843862,-500.0,0.00016438,2]
[329594073,1718479843876,-500.0,0.00016438,2]
[329594074,1718479843887,-500.0,0.00016438,2]
[329594075,1718479843901,-500.0,0.00016438,2]
[329594076,1718479843915,-500.0,0.00016438,2]
[329594077,1718479843935,-1098.75,0.00016438,2]
[329594078,1718479843961,-500.0,0.00016438,2]
[329594080,1718479843975,-500.0,0.00016438,2]
[329594082,1718479844011,-798.1,0.00016438,2]
[329594084,1718479844044,-500.0,0.00016438,2]
[329594086,1718479844061,-500.0,0.00016438,2]
[329594089,1718479844079,-2434.67,0.00016438,2]
[329594092,1718479844092,-500.0,0.00016438,2]
[329594093,1718479844108,-500.0,0.00016438,2]
[329594094,1718479844127,-500.0,0.00016438,2]
[329594095,1718479844138,-500.0,0.00016438,2]
[329594097,1718479844157,-2772.37,0.00016438,2]
[329594098,1718479844177,-500.0,0.00016438,2]
[329594099,1718479844190,-500.0,0.00016438,2]
[329594101,1718479844206,-1012.68,0.00016438,2]
[329594102,1718479844218,-500.0,0.00016438,2]
[329594103,1718479844231,-2652.05,0.00016438,2]
[329594104,1718479844247,-500.0,0.00016438,2]
[329594105,1718479844258,-500.0,0.00016438,2]
[329594106,1718479844271,-500.0,0.00016438,2]
[329594107,1718479844285,-1072.94,0.00016438,2]
[329594108,1718479844299,-500.0,0.00016438,2]
[329594109,1718479844313,-500.0,0.00016438,2]
[329594110,1718479844348,-529.5,0.00016438,2]
[329594111,1718479844372,-1693.35,0.00016438,2]
[329594112,1718479844384,-500.0,0.00016438,2]
[329594113,1718479844398,-500.0,0.00016438,2]
[329594114,1718479844412,-1571.74,0.00016438,2]
[329594115,1718479844449,-500.0,0.00016438,2]
[329594116,1718479844460,-500.0,0.00016438,2]
[329594117,1718479844473,-500.0,0.00016438,2]
[329594118,1718479844486,-153.0,0.00016452,2]
[329594119,1718479844496,-155.01085076,0.00016545,2]
[329594121,1718479844509,-529.5,0.0001658,2]
[329594122,1718479844521,-492.05119261,0.0001661,2]
[329594124,1718479844541,-6306.10548122,0.00016612,13]
[329594126,1718479844561,-2000.0,0.00016612,2]
[329594128,1718479844575,-5270.69012497,0.00016632,2]
[329594130,1718479844590,-310.0,0.00016709,2]
[329594131,1718479844609,-285.52769751,0.00016709,2]
[329594134,1718479844639,-411.83140751,0.00016709,2]
[329594137,1718479844653,-1693.94051453,0.00016709,2]
[329594138,1718479844684,-342.5,0.0001671,2]
[329594139,1718479844712,-292.19306968,0.00016712,2]
[329594141,1718479844724,-2096.53889493,0.00016712,2]
[329594144,1718479844736,-155.01085076,0.00016712,2]
[329594145,1718479844764,-155.01085076,0.00016712,2]
[329594147,1718479844778,-3617.03875472,0.00016712,2]
[329594149,1718479844789,-155.01085076,0.00016712,2]
[329594151,1718479844801,-500.0,0.00016712,2]
[329594153,1718479844826,-1513.66,0.00016712,2]
[329594155,1718479844837,-500.0,0.00016712,2]
[329594157,1718479844863,-500.0,0.00016712,2]
[329594158,1718479844877,-250.0,0.00016712,2]
[329594159,1718479844928,-500.0,0.00016712,2]
[329594160,1718479844956,-504.99443237,0.00016712,2]
[329594161,1718479844996,-500.0,0.00016712,2]
[329594162,1718479845016,-516.45639288,0.00016712,2]
[329594163,1718479845031,-500.0,0.00016712,2]
[329594164,1718479845045,-500.0,0.00016712,2]
[329594165,1718479845064,-500.0,0.00016712,2]
[329594166,1718479845078,-500.0,0.00016712,2]
[329594167,1718479845099,-500.0,0.00016712,2]
[329594168,1718479845110,-500.0,0.00016712,2]
[329594169,1718479845123,-500.0,0.00016712,2]
[329594170,1718479845136,-500.0,0.00016712,2]
[329594171,1718479845152,-500.0,0.00016712,2]
[329594172,1718479845165,-500.0,0.00016712,2]
[329594173,1718479845178,-363.82141599,0.00016712,2]
[329594174,1718479845208,-503.49892835,0.00016712,2]
[329594175,1718479845222,-500.0,0.00016712,2]
[329594176,1718479845249,-326.83120904,0.00016712,2]
[329594177,1718479845291,-500.0,0.00016712,2]
[329594179,1718479845348,-500.0,0.00016712,2]
[329594181,1718479845380,-500.0,0.00016712,2]
[329594182,1718479845401,-234.57415632,0.00016712,2]
[329594183,1718479845413,-500.0,0.00016712,2]
[329594185,1718479845442,-500.0,0.00016712,2]
[329594187,1718479845469,-500.0,0.00016712,2]
[329594189,1718479845483,-500.0,0.00016712,2]
[329594190,1718479845502,-500.0,0.00016712,2]
[329594191,1718479845521,-500.0,0.00016712,2]
[329594192,1718479845538,-500.0,0.00016712,2]
[329594193,1718479845556,-500.0,0.00016712,2]
[329594194,1718479845588,-500.0,0.00016712,2]
[329594195,1718479845601,-500.0,0.00016712,2]
[329594196,1718479845617,-500.0,0.00016712,2]
[329594197,1718479845658,-500.0,0.00016712,2]
[329594198,1718479845670,-500.0,0.00016712,2]
[329594200,1718479845695,-500.0,0.00016712,2]
[329594201,1718479845710,-500.0,0.00016712,2]
[329594202,1718479845737,-500.0,0.00016712,2]
[329594203,1718479845764,-500.0,0.00016712,2]
[329594204,1718479845776,-500.0,0.00016712,2]
[329594205,1718479845799,-500.0,0.00016712,2]
[329594206,1718479845828,-566.51340762,0.00016712,2]
[329594207,1718479845848,-500.0,0.00016712,2]
[329594208,1718479845863,-500.0,0.00016712,2]
[329594209,1718479845874,-500.0,0.00016712,2]
[329594210,1718479845886,-500.0,0.00016712,2]
[329594211,1718479845923,-500.0,0.00016712,2]
[329594212,1718479845968,-500.0,0.00016712,2]
[329594214,1718479845980,-500.0,0.00016712,2]
[329594215,1718479846012,-500.0,0.00016712,2]
[329594216,1718479846037,-500.0,0.00016712,2]
[329594217,1718479846048,-500.0,0.00016712,2]
[329594218,1718479846059,-500.0,0.00016712,2]
[329594219,1718479846106,-500.0,0.00016712,2]
[329594220,1718479846124,-500.0,0.00016712,2]
[329594221,1718479846139,-4168.09,0.00016712,2]
[329594222,1718479846164,-500.0,0.00016712,2]
[329594223,1718479846204,-519.46259702,0.00016712,2]
[329594224,1718479846217,-2399.39,0.00016712,2]
[329594225,1718479846234,-500.0,0.00016712,2]
[329594226,1718479846249,-500.0,0.00016712,2]
[329594228,1718479846274,-500.0,0.00016712,2]
[329594230,1718479846292,-500.0,0.00016712,2]
[329594231,1718479846312,-511.40755556,0.00016712,2]
[329594232,1718479846335,-500.0,0.00016712,2]
[329594233,1718479846351,-500.0,0.00016712,2]
[329594234,1718479846362,-500.0,0.00016712,2]
[329594235,1718479846374,-500.0,0.00016712,2]
[329594236,1718479846387,-500.0,0.00016712,2]
[329594237,1718479846400,-500.0,0.00016712,2]
[329594238,1718479846412,-500.0,0.00016712,2]
[329594239,1718479846426,-500.0,0.00016712,2]
[329594241,1718479846440,-566.42,0.00016712,2]
[329594242,1718479846463,-500.0,0.00016712,2]
[329594243,1718479846481,-500.0,0.00016712,2]
[329594244,1718479846496,-500.0,0.00016712,2]
[329594245,1718479846510,-500.0,0.00016712,2]
[329594246,1718479846522,-370.68718655,0.00016712,2]
[329594248,1718479846548,-500.0,0.00016712,2]
[329594249,1718479846561,-1040.71,0.00016712,2]
[329594251,1718479846574,-500.0,0.00016712,2]
[329594259,1718479846682,-507.24,0.00016712,2]
[329594261,1718479846694,-500.0,0.00016712,2]
[329594264,1718479846713,-500.0,0.00016712,2]
[329594265,1718479846724,-500.0,0.00016712,2]
[329594267,1718479846735,-500.0,0.00016712,2]
[329594269,1718479846746,-500.0,0.00016712,2]
[329594270,1718479846758,-500.0,0.00016712,2]
[329594271,1718479846769,-500.0,0.00016712,2]
[329594272,1718479846780,-500.0,0.00016712,2]
[329594273,1718479846812,-500.0,0.00016712,2]
[329594274,1718479846824,-635.9,0.00016712,2]
[329594275,1718479846839,-325.76694028,0.00016712,2]
[329594276,1718479846860,-500.0,0.00016712,2]
[329594277,1718479846876,-500.0,0.00016712,2]
[329594278,1718479846895,-500.0,0.00016712,2]
[329594279,1718479846909,-500.0,0.00016712,2]
[329594280,1718479846928,-500.0,0.00016712,2]
[329594281,1718479846943,-500.0,0.00016712,2]
[329594282,1718479846958,-500.0,0.00016712,2]
[329594283,1718479846970,-500.0,0.00016712,2]
[329594285,1718479846982,-500.0,0.00016712,2]
[329594287,1718479846994,-1098.75,0.00016712,2]
[329594288,1718479847011,-500.0,0.00016712,2]
[329594290,1718479847034,-500.0,0.00016712,2]
[329594291,1718479847045,-798.1,0.00016712,2]
[329594293,1718479847056,-500.0,0.00016712,2]
[329594294,1718479847074,-500.0,0.00016712,2]
[329594295,1718479847092,-2434.67,0.00016712,2]
[329594296,1718479847112,-500.0,0.00016712,2]
[329594297,1718479847143,-516.3828855,0.00016712,2]
[329594298,1718479847163,-500.0,0.00016712,2]
[329594299,1718479847180,-2772.37,0.00016712,2]
[329594300,1718479847191,-500.0,0.00016712,2]
[329594301,1718479847204,-500.0,0.00016712,2]
[329594302,1718479847217,-1012.68,0.00016712,2]
[329594303,1718479847242,-500.0,0.00016712,2]
[329594304,1718479847265,-2652.05,0.00016712,2]
[329594305,1718479847290,-500.0,0.00016712,2]
[329594306,1718479847325,-500.0,0.00016712,2]
[329594307,1718479847360,-1072.94,0.00016712,2]
[329594309,1718479847373,-500.0,0.00016712,2]
[329594311,1718479847395,-500.0,0.00016712,2]
[329594313,1718479847421,-500.0,0.00016712,2]
[329594315,1718479847434,-1693.35,0.00016712,2]
[329594317,1718479847455,-193.47145182,0.00016712,2]
[329594318,1718479847470,-500.0,0.00016712,2]
[329594320,1718479847483,-1571.74,0.00016712,2]
[329594322,1718479847520,-500.0,0.00016712,2]
[329594326,1718479847544,-500.0,0.00016712,2]
[329594328,1718479847566,-500.0,0.00016712,2]
[329594330,1718479847583,-529.5,0.00016722,2]
[329594331,1718479847595,-529.5,0.00016864,2]
[329594333,1718479847609,-153.0,0.00016916,2]
[329594335,1718479847620,-1513.66,0.00016986,2]
[329594337,1718479847640,-500.0,0.00016986,2]
[329594341,1718479847672,-500.0,0.00016986,2]
[329594346,1718479847748,-500.0,0.00016986,2]
[329594348,1718479847769,-500.0,0.00016986,2]
[329594351,1718479847788,-500.0,0.00016986,2]
[329594353,1718479847809,-500.0,0.00016986,2]
[329594356,1718479847830,-500.0,0.00016986,2]
[329594359,1718479847868,-500.0,0.00016986,2]
[329594360,1718479847881,-4168.09,0.00016986,2]
[329594363,1718479847940,-2399.39,0.00016986,2]
[329594364,1718479847952,-500.0,0.00016986,2]
[329594365,1718479847964,-500.0,0.00016986,2]
[329594367,1718479847976,-500.0,0.00016986,2]
[329594368,1718479848009,-500.0,0.00016986,2]
[329594370,1718479848023,-1040.71,0.00016986,2]
[329594372,1718479848063,-500.0,0.00016986,2]
[329594374,1718479848074,-507.24,0.00016986,2]
[329594376,1718479848093,-500.0,0.00016986,2]
[329594377,1718479848108,-635.9,0.00016986,2]
[329594379,1718479848124,-500.0,0.00016986,2]
[329594382,1718479848151,-1098.75,0.00016986,2]
[329594383,1718479848162,-500.0,0.00016986,2]
[329594385,1718479848184,-798.1,0.00016986,2]
[329594387,1718479848199,-2434.67,0.00016986,2]
[329594389,1718479848224,-500.0,0.00016986,2]
[329594391,1718479848248,-2772.37,0.00016986,2]
[329594394,1718479848261,-1012.68,0.00016986,2]
[329594398,1718479848283,-2652.05,0.00016986,2]
[329594402,1718479848295,-1072.94,0.00016986,2]
[329594405,1718479848312,-500.0,0.00016986,2]
[329594408,1718479848325,-1693.35,0.00016986,2]
[329594411,1718479848343,-1571.74,0.00016986,2]
[329594416,1718479848401,-1000.0,0.00017,7]
[329594419,1718479848419,-529.5,0.00017006,2]
[329594422,1718479848432,-151.0,0.00017006,2]
[329594425,1718479848444,-156.04844692,0.00017028,3]
[329594430,1718479848470,-529.5,0.00017148,2]
[329594434,1718479848492,-151.0,0.00017148,2]
[329594439,1718479848508,-40156.99411738,0.000172,2]
[329594441,1718479848519,-5456.04932379,0.000172,2]
[329594443,1718479848531,-1513.66,0.0001726,2]
[329594445,1718479848542,-500.0,0.0001726,2]
[329594448,1718479848560,-180.48881386,0.0001726,2]
[329594450,1718479848571,-500.0,0.0001726,2]
[329594453,1718479848588,-500.0,0.0001726,2]
[329594457,1718479848599,-500.0,0.0001726,2]
[329594460,1718479848613,-500.0,0.0001726,2]
[329594461,1718479848640,-500.0,0.0001726,2]
[329594464,1718479848654,-500.0,0.0001726,2]
[329594467,1718479848668,-4168.09,0.0001726,2]
[329594471,1718479848710,-2399.39,0.0001726,2]
[329594476,1718479848744,-500.0,0.0001726,2]
[329594477,1718479848756,-500.0,0.0001726,2]
[329594480,1718479848769,-1040.71,0.0001726,2]
[329594482,1718479848783,-500.0,0.0001726,2]
[329594486,1718479848830,-507.24,0.0001726,2]
[329594489,1718479848858,-500.0,0.0001726,2]
[329594492,1718479848871,-635.9,0.0001726,2]
[329594495,1718479848899,-500.0,0.0001726,2]
[329594498,1718479848914,-1098.75,0.0001726,2]
[329594501,1718479848940,-798.1,0.0001726,2]
[329594504,1718479848965,-2434.67,0.0001726,2]
[329594506,1718479848979,-500.0,0.0001726,2]
[329594507,1718479849013,-2772.37,0.0001726,2]
[329594508,1718479849035,-922.68839153,0.0001726,2]
[329594511,1718479849057,-89.99160847,0.0001726,2]
[329594513,1718479849068,-2652.05,0.0001726,2]
[329594514,1718479849086,-170.64758613,0.0001726,2]
[329594516,1718479849102,-744.0,0.0001726,2]
[329594518,1718479849434,-500.0,0.00016438,2]
[329594519,1718479849469,-500.0,0.00016438,2]
[329594520,1718479849500,-500.0,0.00016712,2]
[329594521,1718479849517,-500.0,0.00016712,2]
[329594522,1718479849528,-445.13019853,0.00016986,2]
[329594523,1718479849543,-54.86980147,0.00016986,2]
[329594524,1718479849555,-158.29241387,0.0001726,2]
[329594525,1718479849576,-500.0,0.0001726,2]
[329594526,1718479849596,-580.56034005,0.0001726,2]
[329594527,1718479849611,-1112.78965995,0.0001726,2]
[329594528,1718479849625,-1571.74,0.0001726,2]
[329594529,1718479849637,-259.15660886,0.0001726,2]
[329594530,1718479849651,-240.84339114,0.0001726,2]
[329594531,1718479849674,-600.0,0.0001728,2]
[329594532,1718479849686,-529.5,0.0001729,2]
[329594533,1718479849701,-151.0,0.0001729,2]
[329594534,1718479849714,-153.0,0.00017425,2]
[329594535,1718479849727,-529.5,0.00017432,2]
[329594536,1718479849760,-151.0,0.00017432,2]
[329594537,1718479849779,-137.65660886,0.0001746,2]
[329594539,1718479849960,-612.34339114,0.0001746,2]
[329594540,1718479849998,-810.06405385,0.000175,3]
[329594541,1718479850037,-3166.34804455,0.000175,2]
[329594542,1718479850052,-1169.18551069,0.000175,2]
[329594543,1718479850067,-7431.809033,0.000175,2]
[329594544,1718479850100,-3081.42166903,0.000175,2]
[329594545,1718479850119,-424.71699546,0.000175,2]
[329594830,1718481050792,-444.14,0.00010959,2]
[329594831,1718481050813,-370.12,0.00010959,2]
[329594832,1718481050834,-308.43,0.00010959,2]
[329594833,1718481050858,-257.03,0.00010959,2]
[329594834,1718481050869,-214.19,0.00010959,2]
[329594835,1718481050884,-862.41968156,0.00014207,2]
[329594843,1718481054346,-270.75414662,0.00014207,2]
[329594844,1718481054455,-23766.82617182,0.00014207,2]
[329594845,1718481054466,-626.7234966,0.000149,2]
[329594846,1718481054479,-2136.79468244,0.000149,2]
[329594847,1718481054526,-299.57781245,0.00015,2]
[329594848,1718481054544,-35478.57810534,0.00015,2]
[329594849,1718481054555,-946.56236145,0.00015,2]
[329594850,1718481054576,-34730.00235962,0.00015,2]
[329594852,1718481054594,-1303.55844644,0.00015,2]
[329594853,1718481054608,-626.72349659,0.0001526,2]
[329594855,1718481054621,-489.64646748,0.000156,2]
[329594858,1718481054637,-626.72349659,0.00015619,2]
[329594860,1718481054656,-626.72349659,0.00015979,2]
[329594862,1718481054672,-11488.73061421,0.00016,2]
[329594864,1718481054683,-166.666666,0.00016164,2]
[329594865,1718481054695,-1750.0,0.00016235,2]